[Event "*** Titled Tuesday Blitz"]
[Site "Chess.com"]
[Date "2019.09.03"]
[Round "6"]
[White "DishonorOnYourCow"]
[Black "DarkAlekhine"]
[Result "0-1"]
[WhiteElo "2219"]
[BlackElo "2492"]
[TimeControl "180+2"]
[EndTime "16:21:42 PDT"]
[Termination "DarkAlekhine won by resignation"]

1. d4 {[%clk 0:03:01.9]} 1... d5 {[%clk 0:02:59.8]} 2. c4 {[%clk 0:03:01.3]}
2... c6 {[%clk 0:03:01.1]} 3. cxd5 {[%clk 0:03:00.3]} 3... cxd5 {[%clk 0:03:03]}
4. Nc3 {[%clk 0:03:01.1]} 4... Nc6 {[%clk 0:03:03.2]} 5. Bf4 {[%clk 0:03:01.8]}
5... Nf6 {[%clk 0:03:03.8]} 6. e3 {[%clk 0:03:02.3]} 6... a6 {[%clk 0:03:05.3]}
7. Bd3 {[%clk 0:03:02]} 7... Bg4 {[%clk 0:03:05.9]} 8. f3 {[%clk 0:03:02.7]}
8... Bh5 {[%clk 0:03:06.6]} 9. Nge2 {[%clk 0:03:03.5]} 9... e6 {[%clk
0:03:05.1]} 10. Bg3 {[%clk 0:02:51.7]} 10... Bg6 {[%clk 0:03:05.7]} 11. O-O
{[%clk 0:02:50.1]} 11... Bd6 {[%clk 0:03:06.1]} 12. Bf2 {[%clk 0:02:35]} 12...
b5 {[%clk 0:02:29.4]} 13. Rc1 {[%clk 0:02:07.9]} 13... Na5 {[%clk 0:01:57.6]}
14. e4 {[%clk 0:01:34.6]} 14... Be7 {[%clk 0:01:57]} 15. e5 {[%clk 0:01:31.7]}
15... Nd7 {[%clk 0:01:57.9]} 16. Nf4 {[%clk 0:01:15.7]} 16... Bg5 {[%clk
0:01:55.6]} 17. Be3 {[%clk 0:01:06.8]} 17... Nc4 {[%clk 0:01:53.7]} 18. Bxc4
{[%clk 0:00:50.2]} 18... bxc4 {[%clk 0:01:55.6]} 19. Nfxd5 {[%clk 0:00:48]}
19... exd5 {[%clk 0:01:54.7]} 20. f4 {[%clk 0:00:48.7]} 20... Bxf4 {[%clk
0:01:45.6]} 21. Bxf4 {[%clk 0:00:48.9]} 21... O-O {[%clk 0:01:33.1]} 22. Nxd5
{[%clk 0:00:47.1]} 22... Bd3 {[%clk 0:01:34.4]} 23. Qg4 {[%clk 0:00:28.5]} 23...
Kh8 {[%clk 0:01:16.9]} 24. Rf3 {[%clk 0:00:21.2]} 24... Rg8 {[%clk 0:01:02.8]}
25. Bg5 {[%clk 0:00:20.5]} 25... Qe8 {[%clk 0:00:56.4]} 26. Nf4 {[%clk
0:00:18.5]} 26... Rc8 {[%clk 0:00:42.3]} 27. Rh3 {[%clk 0:00:17.1]} 27... Nf8
{[%clk 0:00:41]} 28. Re1 {[%clk 0:00:13.9]} 28... Ne6 {[%clk 0:00:35.7]} 29. Qh5
{[%clk 0:00:09.2]} 29... Nxf4 {[%clk 0:00:32.8]} 30. Bxf4 {[%clk 0:00:10.2]}
30... Qe6 {[%clk 0:00:33]} 31. Bg5 {[%clk 0:00:09.1]} 31... Bg6 {[%clk
0:00:30.5]} 32. Qe2 {[%clk 0:00:09.4]} 32... Qd5 {[%clk 0:00:30.1]} 33. Rg3
{[%clk 0:00:08.4]} 33... Qxd4+ {[%clk 0:00:30.2]} 34. Kh1 {[%clk 0:00:08.5]}
34... Rb8 {[%clk 0:00:30.7]} 35. Rc3 {[%clk 0:00:07.6]} 35... Qd5 {[%clk
0:00:30.6]} 36. Qxc4 {[%clk 0:00:07.1]} 36... Qxc4 {[%clk 0:00:25.2]} 37. Rxc4
{[%clk 0:00:09]} 37... Rxb2 {[%clk 0:00:26.6]} 38. Ra4 {[%clk 0:00:10.2]} 38...
Ra8 {[%clk 0:00:24]} 39. h4 {[%clk 0:00:10.9]} 39... h6 {[%clk 0:00:25]} 40. Bf4
{[%clk 0:00:11.3]} 40... Bf5 {[%clk 0:00:24.9]} 41. Re3 {[%clk 0:00:10.1]} 41...
Be6 {[%clk 0:00:25.6]} 42. Rea3 {[%clk 0:00:10.7]} 42... Bd5 {[%clk 0:00:24.5]}
43. Rxa6 {[%clk 0:00:08.8]} 43... Rxa6 {[%clk 0:00:26.4]} 44. Rxa6 {[%clk
0:00:09]} 44... Rxg2 {[%clk 0:00:26.5]} 45. Rd6 {[%clk 0:00:09.8]} 45... Bf3
{[%clk 0:00:15.9]} 46. Rd3 {[%clk 0:00:08.1]} 46... Be4 {[%clk 0:00:16.6]} 47.
Re3 {[%clk 0:00:08.4]} 47... Bc6 {[%clk 0:00:18]} 48. Rc3 {[%clk 0:00:08.9]}
48... Rc2+ {[%clk 0:00:18.6]} 49. Rxc6 {[%clk 0:00:09.7]} 49... Rxc6 {[%clk
0:00:20.5]} 50. Kg2 {[%clk 0:00:10.2]} 50... Rc2+ {[%clk 0:00:21.6]} 51. Kg3
{[%clk 0:00:11.5]} 51... Rxa2 {[%clk 0:00:23.5]} 52. Kg4 {[%clk 0:00:12.5]}
52... Ra6 {[%clk 0:00:24.3]} 53. Be3 {[%clk 0:00:13.4]} 53... Re6 {[%clk
0:00:25.7]} 54. Kf5 {[%clk 0:00:14.5]} 54... g6+ {[%clk 0:00:26.9]} 55. Kf4
{[%clk 0:00:15.7]} 55... Kg7 {[%clk 0:00:28.4]} 56. Bd4 {[%clk 0:00:16.9]} 56...
h5 {[%clk 0:00:29.2]} 57. Ke4 {[%clk 0:00:17.7]} 57... Kf8 {[%clk 0:00:31.1]}
58. Kf4 {[%clk 0:00:18.9]} 58... Ke7 {[%clk 0:00:33]} 59. Bc3 {[%clk 0:00:20.2]}
59... Kd7 {[%clk 0:00:34.9]} 60. Bb4 {[%clk 0:00:21.5]} 60... Kc6 {[%clk
0:00:36.8]} 61. Bd6 {[%clk 0:00:22]} 61... Kd5 {[%clk 0:00:38.7]} 62. Bb4 {[%clk
0:00:22.5]} 62... Re8 {[%clk 0:00:39.9]} 63. Bc3 {[%clk 0:00:23.6]} 63... Ke6
{[%clk 0:00:41.8]} 64. Bd4 {[%clk 0:00:24.6]} 64... Rc8 {[%clk 0:00:43.7]} 65.
Ke4 {[%clk 0:00:25.7]} 65... Rc4 {[%clk 0:00:45.6]} 66. Kd3 {[%clk 0:00:25]}
66... Kd5 {[%clk 0:00:46.3]} 67. Bf2 {[%clk 0:00:24.8]} 67... Rf4 {[%clk
0:00:47.4]} 68. Bg3 {[%clk 0:00:25.4]} 68... Rg4 {[%clk 0:00:48.6]} 69. Bf2
{[%clk 0:00:23.4]} 69... Kxe5 {[%clk 0:00:49.8]} 70. Ke2 {[%clk 0:00:24.3]}
70... Rg2 {[%clk 0:00:45.2]} 71. Kf3 {[%clk 0:00:24.3]} 71... Rxf2+ {[%clk
0:00:47.1]} 72. Kxf2 {[%clk 0:00:25.5]} 72... Kf4 {[%clk 0:00:49]} 73. Kg2
{[%clk 0:00:26.2]} 73... Kg4 {[%clk 0:00:49.8]} 0-1

[Event "*** Titled Tuesday Blitz"]
[Site "Chess.com"]
[Date "2019.09.03"]
[Round "6"]
[White "juniortay"]
[Black "Svet99"]
[Result "1-0"]
[WhiteElo "2452"]
[BlackElo "2149"]
[TimeControl "180+2"]
[EndTime "16:21:42 PDT"]
[Termination "juniortay won by resignation"]

1. e4 {[%clk 0:03:01.9]} 1... c6 {[%clk 0:03:00.2]} 2. Nf3 {[%clk 0:02:59.2]}
2... d5 {[%clk 0:03:00.9]} 3. exd5 {[%clk 0:03:01.1]} 3... cxd5 {[%clk
0:03:01.7]} 4. Ne5 {[%clk 0:03:02.7]} 4... Nf6 {[%clk 0:03:01]} 5. d4 {[%clk
0:03:04]} 5... Nbd7 {[%clk 0:03:01]} 6. Bd3 {[%clk 0:03:04.6]} 6... e6 {[%clk
0:03:01.7]} 7. O-O {[%clk 0:03:04.9]} 7... Bd6 {[%clk 0:03:02.2]} 8. Qe2 {[%clk
0:03:04.8]} 8... O-O {[%clk 0:03:02.2]} 9. f4 {[%clk 0:03:03.6]} 9... Qb6 {[%clk
0:02:58.5]} 10. c3 {[%clk 0:03:01.1]} 10... a6 {[%clk 0:02:45.9]} 11. Kh1 {[%clk
0:03:00.1]} 11... Qc7 {[%clk 0:02:46.2]} 12. Nd2 {[%clk 0:02:58.7]} 12... b5
{[%clk 0:02:47]} 13. a3 {[%clk 0:02:57.9]} 13... Nb6 {[%clk 0:02:47.6]} 14. Rf3
{[%clk 0:02:58.1]} 14... Nc4 {[%clk 0:02:47.3]} 15. Rh3 {[%clk 0:02:57.6]} 15...
Bb7 {[%clk 0:02:39.7]} 16. Bxh7+ {[%clk 0:02:56.2]} 16... Nxh7 {[%clk
0:02:29.9]} 17. Qh5 {[%clk 0:02:56.2]} 17... Rfd8 {[%clk 0:02:23.3]} 18. Qxh7+
{[%clk 0:02:54.3]} 18... Kf8 {[%clk 0:02:24.3]} 19. Qh8+ {[%clk 0:02:31.5]}
19... Ke7 {[%clk 0:02:24.9]} 20. Qxg7 {[%clk 0:02:32.9]} 20... Bxe5 {[%clk
0:02:20.9]} 21. fxe5 {[%clk 0:02:32.3]} 21... Rg8 {[%clk 0:02:20.3]} 22. Qf6+
{[%clk 0:02:30.4]} 22... Ke8 {[%clk 0:02:21]} 23. Rh8 {[%clk 0:02:12.2]} 23...
Rxh8 {[%clk 0:02:17.8]} 24. Qxh8+ {[%clk 0:02:13.5]} 24... Kd7 {[%clk
0:02:18.8]} 25. Qf6 {[%clk 0:02:06.6]} 25... Kc6 {[%clk 0:02:19.5]} 26. Nf3
{[%clk 0:02:06.6]} 26... Rg8 {[%clk 0:02:09.8]} 27. b3 {[%clk 0:01:51.6]} 27...
Nb6 {[%clk 0:02:09.2]} 28. Bd2 {[%clk 0:01:52.5]} 28... Nc8 {[%clk 0:02:07.1]}
29. Ng5 {[%clk 0:01:40.3]} 29... Qe7 {[%clk 0:01:44.9]} 30. Rf1 {[%clk
0:01:17.1]} 30... Kd7 {[%clk 0:01:30]} 31. Qxf7 {[%clk 0:01:09.5]} 31... Qxf7
{[%clk 0:01:27.7]} 32. Rxf7+ {[%clk 0:01:08.1]} 32... Ne7 {[%clk 0:01:28.5]} 33.
h4 {[%clk 0:00:50.3]} 33... Bc8 {[%clk 0:01:28.6]} 34. g4 {[%clk 0:00:41.7]}
34... Ke8 {[%clk 0:01:29.3]} 35. Rf6 {[%clk 0:00:38.7]} 35... Rf8 {[%clk
0:01:28.4]} 36. h5 {[%clk 0:00:32.3]} 36... Ng8 {[%clk 0:01:24.8]} 37. Rxf8+
{[%clk 0:00:29.6]} 37... Kxf8 {[%clk 0:01:25.5]} 38. Kg2 {[%clk 0:00:31.1]}
38... Kg7 {[%clk 0:01:26.3]} 39. Kg3 {[%clk 0:00:32]} 39... Bd7 {[%clk
0:01:26.3]} 40. Kf4 {[%clk 0:00:32.8]} 40... Nh6 {[%clk 0:01:24.4]} 41. Nh3
{[%clk 0:00:30.1]} 41... Be8 {[%clk 0:01:23.1]} 42. Kg5 {[%clk 0:00:30.8]} 42...
Nf7+ {[%clk 0:01:23.4]} 43. Kf4 {[%clk 0:00:31.9]} 43... Nh6 {[%clk 0:01:24.1]}
44. Ng5 {[%clk 0:00:32.5]} 44... Bd7 {[%clk 0:01:24.2]} 45. Nf3 {[%clk
0:00:33.6]} 45... Nf7 {[%clk 0:01:24.2]} 46. Ne1 {[%clk 0:00:34.1]} 46... Nh6
{[%clk 0:01:24.5]} 47. Nd3 {[%clk 0:00:35]} 47... Nf7 {[%clk 0:01:22.4]} 48. g5
{[%clk 0:00:32.8]} 48... Nh8 {[%clk 0:01:20.3]} 49. Kg4 {[%clk 0:00:33.6]} 49...
Nf7 {[%clk 0:01:20.4]} 50. h6+ {[%clk 0:00:33.5]} 50... Kh7 {[%clk 0:01:19.2]}
51. Nf4 {[%clk 0:00:34.2]} 51... Nh8 {[%clk 0:01:19.9]} 52. Kf3 {[%clk
0:00:29.1]} 52... Bc8 {[%clk 0:01:12.1]} 53. Ke3 {[%clk 0:00:29]} 53... Bd7
{[%clk 0:01:13]} 54. Nh5 {[%clk 0:00:27.1]} 54... Kg6 {[%clk 0:01:09.9]} 55. Nf6
{[%clk 0:00:26.9]} 55... Bc8 {[%clk 0:01:10.3]} 56. Kd3 {[%clk 0:00:27.4]} 56...
Nf7 {[%clk 0:01:10.3]} 57. h7 {[%clk 0:00:26.5]} 57... Nh8 {[%clk 0:01:10.1]}
58. a4 {[%clk 0:00:24.4]} 58... Bb7 {[%clk 0:01:08]} 59. axb5 {[%clk 0:00:24.7]}
59... axb5 {[%clk 0:01:09]} 60. Kc2 {[%clk 0:00:26.2]} 60... Bc6 {[%clk
0:01:09.4]} 61. Kb2 {[%clk 0:00:27.4]} 61... b4 {[%clk 0:01:00.6]} 62. c4 {[%clk
0:00:22]} 62... dxc4 {[%clk 0:00:59.6]} 63. bxc4 {[%clk 0:00:22.9]} 63... Ba4
{[%clk 0:00:55.8]} 64. d5 {[%clk 0:00:19.6]} 64... exd5 {[%clk 0:00:54.8]} 65.
cxd5 {[%clk 0:00:21.5]} 65... Kf5 {[%clk 0:00:55.5]} 66. e6 {[%clk 0:00:22]}
66... Kg6 {[%clk 0:00:48.4]} 67. e7 {[%clk 0:00:22.3]} 67... Kf7 {[%clk
0:00:48.9]} 68. d6 {[%clk 0:00:23.4]} 68... Ng6 {[%clk 0:00:42.6]} 69. Bxb4
{[%clk 0:00:23.6]} 1-0

[Event "*** Titled Tuesday Blitz"]
[Site "Chess.com"]
[Date "2019.09.03"]
[Round "6"]
[White "PchelkinVK"]
[Black "Kimster98"]
[Result "1/2-1/2"]
[WhiteElo "2493"]
[BlackElo "2609"]
[TimeControl "180+2"]
[EndTime "16:21:55 PDT"]
[Termination "Game drawn - insufficient material"]

1. d4 {[%clk 0:03:01.9]} 1... d6 {[%clk 0:02:13]} 2. Nc3 {[%clk 0:02:54]} 2...
Nf6 {[%clk 0:02:13.1]} 3. e4 {[%clk 0:02:55.5]} 3... c6 {[%clk 0:02:14.4]} 4. f4
{[%clk 0:02:55.5]} 4... Qa5 {[%clk 0:02:14.9]} 5. e5 {[%clk 0:02:51.1]} 5... Ne4
{[%clk 0:02:15.8]} 6. Bd3 {[%clk 0:02:29.5]} 6... Nxc3 {[%clk 0:02:01.1]} 7. Qd2
{[%clk 0:02:30.6]} 7... g6 {[%clk 0:01:54.9]} 8. bxc3 {[%clk 0:02:29.8]} 8...
Bg7 {[%clk 0:01:51.4]} 9. h4 {[%clk 0:02:28.9]} 9... h5 {[%clk 0:01:52.1]} 10.
Nf3 {[%clk 0:02:29.5]} 10... Bg4 {[%clk 0:01:51.8]} 11. Ng5 {[%clk 0:02:27.5]}
11... e6 {[%clk 0:01:39.5]} 12. exd6 {[%clk 0:02:15]} 12... O-O {[%clk
0:01:27.9]} 13. Rb1 {[%clk 0:01:40.9]} 13... b5 {[%clk 0:00:53.2]} 14. O-O
{[%clk 0:01:12.1]} 14... Rd8 {[%clk 0:00:44.7]} 15. Ne4 {[%clk 0:01:10.4]} 15...
Bf5 {[%clk 0:00:36.9]} 16. Nc5 {[%clk 0:01:03.9]} 16... Bxd3 {[%clk 0:00:19.1]}
17. Qxd3 {[%clk 0:01:04.8]} 17... Qb6 {[%clk 0:00:18.8]} 18. f5 {[%clk
0:00:56.4]} 18... exf5 {[%clk 0:00:19]} 19. Bg5 {[%clk 0:00:45.6]} 19... Rxd6
{[%clk 0:00:19.6]} 20. Qg3 {[%clk 0:00:28.4]} 20... Rd5 {[%clk 0:00:18.8]} 21.
Rbe1 {[%clk 0:00:25.4]} 21... Nd7 {[%clk 0:00:19.9]} 22. Nd3 {[%clk 0:00:26.8]}
22... Qb8 {[%clk 0:00:19.3]} 23. Nf4 {[%clk 0:00:26]} 23... Rd6 {[%clk
0:00:20.3]} 24. Be7 {[%clk 0:00:26.5]} 24... Nf6 {[%clk 0:00:21.5]} 25. Nxg6
{[%clk 0:00:22]} 25... Ne4 {[%clk 0:00:19.9]} 26. Rxe4 {[%clk 0:00:19.6]} 26...
Rxg6 {[%clk 0:00:18.4]} 27. Qxb8+ {[%clk 0:00:20.9]} 27... Rxb8 {[%clk
0:00:20.3]} 28. Rxf5 {[%clk 0:00:21.9]} 28... Re8 {[%clk 0:00:22]} 29. Rf1
{[%clk 0:00:12.8]} 29... Re6 {[%clk 0:00:18.5]} 30. Rxe6 {[%clk 0:00:12.9]}
30... fxe6 {[%clk 0:00:20.4]} 31. Bc5 {[%clk 0:00:12.5]} 31... e5 {[%clk
0:00:21.3]} 32. Re1 {[%clk 0:00:11.1]} 32... Kf7 {[%clk 0:00:21.8]} 33. Bxa7
{[%clk 0:00:11]} 33... Ra8 {[%clk 0:00:21.3]} 34. Bc5 {[%clk 0:00:12.3]} 34...
exd4 {[%clk 0:00:22.2]} 35. Bxd4 {[%clk 0:00:12.9]} 35... Rxa2 {[%clk
0:00:22.3]} 36. Bxg7 {[%clk 0:00:11.5]} 36... Kxg7 {[%clk 0:00:24.2]} 37. Re5
{[%clk 0:00:12.6]} 37... Rxc2 {[%clk 0:00:23.2]} 38. Rc5 {[%clk 0:00:12.4]}
38... Kf7 {[%clk 0:00:14.8]} 39. Rxc6 {[%clk 0:00:13.5]} 39... b4 {[%clk
0:00:14.8]} 40. Rc5 {[%clk 0:00:12.4]} 40... b3 {[%clk 0:00:10.7]} 41. Kh2
{[%clk 0:00:12.4]} 41... Kg6 {[%clk 0:00:11.4]} 42. Rg5+ {[%clk 0:00:12.5]}
42... Kh6 {[%clk 0:00:12.4]} 43. Rc5 {[%clk 0:00:09.6]} 43... b2 {[%clk
0:00:13.8]} 44. Rb5 {[%clk 0:00:10.7]} 44... Rxc3 {[%clk 0:00:14.7]} 45. Rxb2
{[%clk 0:00:11.5]} 45... Rc6 {[%clk 0:00:15.7]} 46. Rb5 {[%clk 0:00:11.9]} 46...
Kg6 {[%clk 0:00:17]} 47. Kh3 {[%clk 0:00:11.9]} 47... Rc3+ {[%clk 0:00:17.8]}
48. g3 {[%clk 0:00:12.7]} 48... Rc6 {[%clk 0:00:19.3]} 49. Rg5+ {[%clk
0:00:13.6]} 49... Kh6 {[%clk 0:00:20.6]} 50. Kg2 {[%clk 0:00:14.8]} 50... Rc2+
{[%clk 0:00:21.5]} 51. Kf3 {[%clk 0:00:16]} 51... Rc3+ {[%clk 0:00:23]} 52. Kg2
{[%clk 0:00:16.7]} 52... Rc2+ {[%clk 0:00:24.2]} 53. Kh3 {[%clk 0:00:18.1]}
53... Rc6 {[%clk 0:00:25.2]} 54. Rd5 {[%clk 0:00:16.7]} 54... Rb6 {[%clk
0:00:26.3]} 55. Kg2 {[%clk 0:00:15.4]} 55... Rb2+ {[%clk 0:00:27.4]} 56. Kf3
{[%clk 0:00:16.6]} 56... Rb3+ {[%clk 0:00:27.8]} 57. Kf4 {[%clk 0:00:15.2]}
57... Kg6 {[%clk 0:00:28.5]} 58. Rd6+ {[%clk 0:00:15.9]} 58... Kg7 {[%clk
0:00:29.6]} 59. Re6 {[%clk 0:00:13.4]} 59... Rc3 {[%clk 0:00:30.4]} 60. Re5
{[%clk 0:00:11.2]} 60... Kg6 {[%clk 0:00:30.9]} 61. Re6+ {[%clk 0:00:12.2]}
61... Kg7 {[%clk 0:00:32.2]} 62. Kg5 {[%clk 0:00:10.8]} 62... Rxg3+ {[%clk
0:00:33]} 63. Kxh5 {[%clk 0:00:12]} 63... Kh7 {[%clk 0:00:34.4]} 64. Re7+ {[%clk
0:00:12.8]} 64... Rg7 {[%clk 0:00:35.6]} 65. Rxg7+ {[%clk 0:00:13.3]} 65... Kxg7
{[%clk 0:00:37.5]} 66. Kg5 {[%clk 0:00:14.6]} 66... Kh7 {[%clk 0:00:39]} 67. h5
{[%clk 0:00:16.5]} 67... Kg7 {[%clk 0:00:40.5]} 68. h6+ {[%clk 0:00:18.4]} 68...
Kh7 {[%clk 0:00:42.4]} 69. Kh5 {[%clk 0:00:19.5]} 69... Kh8 {[%clk 0:00:43.9]}
70. h7 {[%clk 0:00:21]} 70... Kxh7 {[%clk 0:00:45.1]} 1/2-1/2

[Event "*** Titled Tuesday Blitz"]
[Site "Chess.com"]
[Date "2019.09.03"]
[Round "6"]
[White "TigranLPetrosyan"]
[Black "Fighterman91"]
[Result "0-1"]
[WhiteElo "2911"]
[BlackElo "2755"]
[TimeControl "180+2"]
[EndTime "16:22:01 PDT"]
[Termination "Fighterman91 won by resignation"]

1. Nf3 {[%clk 0:03:01.9]} 1... Nf6 {[%clk 0:03:00.5]} 2. g3 {[%clk 0:03:03.8]}
2... g6 {[%clk 0:03:01.5]} 3. Bg2 {[%clk 0:03:05.4]} 3... Bg7 {[%clk 0:03:01.6]}
4. d3 {[%clk 0:03:07]} 4... d5 {[%clk 0:03:01.6]} 5. O-O {[%clk 0:03:07.8]} 5...
O-O {[%clk 0:03:03.3]} 6. Nbd2 {[%clk 0:03:09]} 6... Nc6 {[%clk 0:03:05]} 7. e4
{[%clk 0:03:10.6]} 7... dxe4 {[%clk 0:03:06.6]} 8. dxe4 {[%clk 0:03:11.8]} 8...
Nd7 {[%clk 0:03:08.2]} 9. Qe2 {[%clk 0:03:11]} 9... Nc5 {[%clk 0:03:01.9]} 10.
Nb3 {[%clk 0:03:11.9]} 10... Na4 {[%clk 0:02:48.5]} 11. c3 {[%clk 0:03:09.2]}
11... a5 {[%clk 0:02:39.5]} 12. Rd1 {[%clk 0:03:08.1]} 12... Qe8 {[%clk
0:02:40.9]} 13. Bf4 {[%clk 0:03:02.8]} 13... e5 {[%clk 0:02:38.7]} 14. Be3
{[%clk 0:03:04.2]} 14... Be6 {[%clk 0:02:26.8]} 15. Rd2 {[%clk 0:02:49.6]} 15...
h6 {[%clk 0:02:14.1]} 16. Rad1 {[%clk 0:02:25.5]} 16... b6 {[%clk 0:02:15]} 17.
h4 {[%clk 0:02:21.8]} 17... Na7 {[%clk 0:01:54.4]} 18. Kh2 {[%clk 0:01:58.3]}
18... Nb5 {[%clk 0:01:34.6]} 19. Rc1 {[%clk 0:01:46.4]} 19... Nd6 {[%clk
0:01:29]} 20. Rdc2 {[%clk 0:01:28.7]} 20... Bc4 {[%clk 0:01:11.9]} 21. Qe1
{[%clk 0:01:05.8]} 21... Bd3 {[%clk 0:01:07.6]} 22. Rd2 {[%clk 0:00:45.5]} 22...
Bxe4 {[%clk 0:01:09]} 23. c4 {[%clk 0:00:47]} 23... Nf5 {[%clk 0:00:54.4]} 24.
Bxh6 {[%clk 0:00:27.5]} 24... Bxh6 {[%clk 0:00:50.6]} 25. Qxe4 {[%clk
0:00:27.5]} 25... Bxd2 {[%clk 0:00:52.3]} 26. Nfxd2 {[%clk 0:00:28.8]} 26... Rd8
{[%clk 0:00:53.4]} 27. Re1 {[%clk 0:00:28.6]} 27... Nxb2 {[%clk 0:00:49.4]} 28.
Qg4 {[%clk 0:00:26.6]} 28... Nd3 {[%clk 0:00:48]} 29. Re2 {[%clk 0:00:27.9]}
29... Nh6 {[%clk 0:00:44.8]} 30. Qg5 {[%clk 0:00:27.9]} 30... Kg7 {[%clk
0:00:46.3]} 31. Ne4 {[%clk 0:00:24.9]} 31... f6 {[%clk 0:00:46.9]} 32. Qd2
{[%clk 0:00:26]} 32... Ng4+ {[%clk 0:00:46.8]} 33. Kg1 {[%clk 0:00:26.7]} 33...
Ndxf2 {[%clk 0:00:44]} 34. Qe1 {[%clk 0:00:28]} 34... Nxe4 {[%clk 0:00:44.4]}
35. Bxe4 {[%clk 0:00:28.3]} 35... f5 {[%clk 0:00:44.7]} 36. Bf3 {[%clk
0:00:29.7]} 36... Qf7 {[%clk 0:00:29.4]} 37. Nd2 {[%clk 0:00:29.5]} 37... Rfe8
{[%clk 0:00:27.1]} 38. Bxg4 {[%clk 0:00:29.2]} 38... fxg4 {[%clk 0:00:28]} 39.
Rf2 {[%clk 0:00:30]} 39... Qd7 {[%clk 0:00:26.8]} 40. Kh2 {[%clk 0:00:28.4]}
40... e4 {[%clk 0:00:25.2]} 41. Nxe4 {[%clk 0:00:27.8]} 41... Qd4 {[%clk
0:00:19.6]} 42. Re2 {[%clk 0:00:28.6]} 42... Re5 {[%clk 0:00:19.7]} 43. Nf2
{[%clk 0:00:27.1]} 43... Rde8 {[%clk 0:00:16.6]} 44. Rxe5 {[%clk 0:00:19.5]}
44... Rxe5 {[%clk 0:00:18.2]} 45. Qf1 {[%clk 0:00:21.2]} 45... Rf5 {[%clk
0:00:19]} 46. Kg2 {[%clk 0:00:22.7]} 46... Qxf2+ {[%clk 0:00:11.1]} 47. Qxf2
{[%clk 0:00:24.6]} 47... Rxf2+ {[%clk 0:00:12.5]} 48. Kxf2 {[%clk 0:00:26.1]}
48... Kf6 {[%clk 0:00:14.2]} 49. Ke3 {[%clk 0:00:27.6]} 49... Ke5 {[%clk
0:00:15.7]} 50. a3 {[%clk 0:00:29]} 50... c6 {[%clk 0:00:15]} 51. a4 {[%clk
0:00:30.5]} 51... Kd6 {[%clk 0:00:05.6]} 52. Kd4 {[%clk 0:00:30.4]} 52... Ke6
{[%clk 0:00:04.3]} 53. Ke4 {[%clk 0:00:31.7]} 53... Kd6 {[%clk 0:00:05.4]} 54.
Kd4 {[%clk 0:00:21.2]} 54... Ke6 {[%clk 0:00:05.8]} 55. Ke4 {[%clk 0:00:22.5]}
55... Kf6 {[%clk 0:00:05.4]} 56. Kf4 {[%clk 0:00:21.1]} 56... Ke7 {[%clk
0:00:05.1]} 57. Kg5 {[%clk 0:00:22.1]} 57... b5 {[%clk 0:00:06.4]} 58. axb5
{[%clk 0:00:15]} 58... a4 {[%clk 0:00:05.2]} 59. b6 {[%clk 0:00:14.6]} 59... Kd7
{[%clk 0:00:06.2]} 60. Kxg6 {[%clk 0:00:13.2]} 60... a3 {[%clk 0:00:07.8]} 61.
h5 {[%clk 0:00:12.5]} 61... a2 {[%clk 0:00:09.4]} 62. b7 {[%clk 0:00:14.4]}
62... Kc7 {[%clk 0:00:10.1]} 63. h6 {[%clk 0:00:15.6]} 63... a1=Q {[%clk
0:00:11.4]} 64. h7 {[%clk 0:00:16.6]} 64... Qh8 {[%clk 0:00:12.4]} 0-1